Cogmind - Beta 15 @@@ ROGUE MODE // 2025.07.02 @ 20:28:04 Player: Dwarfinator Result: Destroyed by HV-NY7(j) with Overtuned Pulse Rifle Performance ------------- Evolutions (0) 0 Regions Visited (5) 1000 Robots Destroyed (41) 205 Value Destroyed (1165) 1165 Prototype IDs (27) 540 Alien Tech Used (0) 0 Bonus (865) 865 TOTAL SCORE: 3775 Bonus ------- Follower Combat Kills 161 Registered with UFD 300 Met Optimus in HQ 500 Friendly Fire -96 Cogmind --------- Core Integrity 0/250 Matter 300/300 Energy 51/100 System Corruption 0% Temperature Cool (12) Movement Hovering (600) Ox9 Location -7/Scraptown Parts ------- > --- POWER (1+1) ------ (None) > --- PROPULSION (2+2) - Improved Hover Unit > --- UTILITY (2+2) ---- Tower Shield > --- WEAPON (2+2) ----- Siege Cannon Replica (++) > --- INVENTORY (5) ---- Xenon Bombardment Thruster Surveybot 24 Chip Peak State ------------ > --- POWER ------------ (None) > --- PROPULSION ------- Improved Hover Unit > --- UTILITY ---------- Tower Shield > --- WEAPON ----------- Siege Cannon Replica LU-1G1's Laser Shovel > --- INVENTORY -------- Xenon Bombardment Thruster Surveybot 24 Chip [Rating: 41] Favorites ----------- Power Light Nuclear Core Engine Improved Deuterium Engine Power Core Light Nuclear Core Propulsion Light Treads Treads Light Treads Wheel Compact Wheel Hover Unit Improved Hover Unit Flight Unit Xenon Bombardment Thruster Utility Huge Storage Unit Device Seismic Detector Storage Huge Storage Unit Processor A0-MCA's Component Scanner Protection Improved Medium Armor Plating Weapon Datajack Energy Gun Subdweller Laser Energy Cannon Subdweller Beam Cannon Ballistic Gun Assault Rifle Ballistic Cannon Gauss Cannon Special Weapon LU-1G1's Laser Shovel Impact Weapon Hammer Slashing Weapon Makeshift Sword Special Melee Weapon Datajack Build | -11 -10 -10 -10 -7 -7 ------- Run | Yrd Mat Min Sub Rec Scr Slots Evolved . | . . . . . . Power . | . . . . . . Propulsion . | . . . . . . Utility . | . . . . . . Weapon . | . . . . . . Parts Attached 57 | 8 8 4 21 5 11 Power 10 | 1 1 1 4 2 1 Engine 9 | 1 1 . 4 2 1 Core 1 | . . 1 . . . Reactor . | . . . . . . Propulsion 15 | 2 1 . 7 1 4 Treads 4 | 2 . . 1 1 . Leg . | . . . . . . Wheel 7 | . 1 . 6 . . Hover 2 | . . . . . 2 Flight 2 | . . . . . 2 Utility 13 | 2 3 2 1 1 4 Device 4 | 1 1 2 . . . Storage 4 | 1 1 . . . 2 Processor 1 | . . . . . 1 Hackware . | . . . . . . Protection 4 | . 1 . 1 1 1 Artifact . | . . . . . . Weapon 19 | 3 3 1 9 1 2 Energy Gun 8 | 2 1 . 5 . . Energy Cannon 1 | . . . 1 . . Ballistic Gun 1 | 1 . . . . . Ballistic Cannon 4 | . . . 2 1 1 Launcher . | . . . . . . Special Weapon 2 | . 1 . . . 1 Impact Weapon 1 | . 1 . . . . Slashing Weapon 1 | . . . 1 . . Piercing Weapon . | . . . . . . Special Melee Weapon 1 | . . 1 . . . Unidentified Prototypes 2 | . . 1 . . 1 Parts Lost 9 | . 2 . 5 . 2 Power 1 | . . . 1 . . Propulsion 4 | . . . 2 . 2 Utility 2 | . . . 2 . . Weapon 2 | . 2 . . . . Highest Loss Streak 2 | . 1 . 2 . 1 To Critical Strikes . | . . . . . . Average Backups 20 | 3 20 24 23 22 17 Power 1 | . 1 3 1 2 1 Propulsion 5 | 2 9 8 7 4 2 Utility 6 | . 6 10 6 6 6 Weapon 6 | . 2 2 7 8 6 Tool/Special . | . . . . . . Unused Backups 67 | . 14 3 15 7 28 Power 4 | . 2 . 1 . 1 Propulsion 20 | . 8 1 2 3 6 Utility 22 | . 4 2 5 3 8 Weapon 18 | . . . 7 1 10 Tool/Special 3 | . . . . . 3 Average Slot Usage (%) 96 | . 99 100 99 99 90 Engine 9 | . 14 6 5 14 11 Core 3 | . . 7 8 . . Treads 13 | . 17 14 14 14 11 Wheel 12 | . 10 14 13 14 11 Flight 1 | . . . . . 3 Device 7 | . 11 14 12 12 . Storage 13 | . 14 14 14 14 13 Protection 5 | . 2 . 1 1 11 Energy Gun 9 | . 22 14 16 . . Energy Cannon 1 | . . . 4 . . Ballistic Gun 1 | . 4 13 1 . . Ballistic Cannon 7 | . . . 4 14 11 Special Melee Weapon 5 | . . . 1 10 11 Peak Build Rating 41 | 7 10 18 22 24 41 Average Rating 17 | 5 8 14 15 18 21 On Entrance 11 | . 7 10 13 16 24 Naked Turns . | . . . . . . Heaviest Build 105 | 15 92 97 101 101 105 Greatest Support 40 | 40 40 16 40 16 16 Greatest Overweight (x) 9 | . 5 6 6 6 9 Average Overweight (x) 4 | . 4 5 4 5 4 Largest Inventory Capacity 25 | 8 25 25 25 25 25 Average Capacity 23 | 7 23 25 25 25 22 Most Carried 25 | 8 25 25 25 25 25 Average Carried 22 | 4 20 24 24 24 19 Final Capacity 25 | 8 25 25 25 25 5 Final Carried 25 | 8 25 25 25 25 2 Class Distribution -------------------- 43% | Commander-Mutant 38% | Mutant 17% | Scavenger-Mutant Dominant Class ---------------- Mutant | -10/Materials Mutant | -10/Mines Mutant | -10/Subcaves Commander-Mutant | -7/Recycling Commander-Mutant | -7/Scraptown Resources | -11 -10 -10 -10 -7 -7 ----------- Run | Yrd Mat Min Sub Rec Scr Matter Collected 2558 | 340 535 360 813 307 203 Remotely . | . . . . . . Salvage Created 1959 | 141 749 223 724 122 . Parts 108 | 12 34 9 45 8 . Haulers Intercepted 2 | . 2 . . . . Recyclers Shooed . | . . . . . . Parts Field Recycled . | . . . . . . Retrieved Matter . | . . . . . . Parts Self-Destructed 12 | . . . 12 . . Prevented . | . . . . . . Kills | -11 -10 -10 -10 -7 -7 ------- Run | Yrd Mat Min Sub Rec Scr Combat Hostiles Destroyed 27 | . 12 1 13 1 . Melee 1 | . . . . 1 . Guns 21 | . 11 1 9 . . Cannons 2 | . . . 2 . . Classes Destroyed 11 | 2 4 . 5 . . Tunneler 3 | 3 . . . . . Hauler 2 | . 2 . . . . Recycler 4 | 1 . 2 . 1 . Operator 2 | . 2 . . . . Watcher 1 | . 1 . . . . Swarmer 2 | . . . 2 . . Grunt 14 | . 12 2 . . . Sentry 2 | . . . 1 1 . Artisan 2 | . . . 2 . . Cobbler 1 | . . . 1 . . Subdweller 11 | . . . 11 . . Best Kill Streak 4 | 4 4 2 2 1 . Combat Bots Only 3 | . 3 1 2 1 . Max Kills in Single Turn 2 | 1 2 1 2 1 . Gunslinging 1 | . 1 . 1 . . Exploded . | . . . . . . Melee 1 | . . . . 1 . Uniques/NPCs Destroyed . | . . . . . . Combat | -11 -10 -10 -10 -7 -7 -------- Run | Yrd Mat Min Sub Rec Scr Hostile Shots Fired 146 | . 30 1 77 . 38 Missed 44 | . 8 . 24 . 12 Hits 102 | . 22 1 53 . 26 Melee 2 | . . . . . 2 Projectile 100 | . 22 1 53 . 24 Critical Strikes 3 | . . . . . 3 Damage Taken 1942 | . 516 13 833 . 580 Core 273 | . 20 . 161 . 92 Absorbed by Shields . | . . . . . . Regen/Repaired (Parts) 96 | . 96 . . . . Core Remaining (%) 100 | 100 . . . . . Volleys Fired 238 | 22 47 12 156 . 1 Largest 2 | 2 2 2 2 . 1 Hottest 120 | 80 100 60 120 . 90 Shots Fired 349 | 23 87 19 219 . 1 Gun 274 | 23 84 19 148 . . Cannon 72 | . . . 71 . 1 Launcher . | . . . . . . Special 3 | . 3 . . . . Kinetic 84 | 20 3 7 53 . 1 Thermal 169 | . 3 . 166 . . Explosive . | . . . . . . Electromagnetic 96 | 3 81 12 . . . Robot Hit Streak 24 | 6 13 9 24 . 17 Robot Miss Streak 2 | 2 2 2 2 . . Penetration Max . | . . . . . . Secondary Targets 2 | . 1 . 1 . . Max Gunslinging Chain 1 | . 1 . 1 . . Shots Hit Robots 232 | 16 60 17 101 29 9 Core Hits 75 | 5 30 6 32 2 . Critical Kills 4 | . . . 4 . . Critical Parts Destroyed 1 | . . . 1 . . Critical Strikes 8 | . 1 . 7 . . Meltdown 2 | . . . 2 . . Destroy 3 | . . . 3 . . Blast 2 | . . . 2 . . Corrupt 1 | . 1 . . . . Melee Attacks 48 | . 3 1 5 29 10 Impact 3 | . 3 . . . . Slashing 10 | . . . 5 3 2 Piercing . | . . . . . . Sneak Attacks 41 | . . 1 4 28 8 Combat Hostiles 1 | . . . . 1 . Follow-up Attacks . | . . . . . . Damage Inflicted 4118 | 192 1066 245 2308 218 89 Guns 2831 | 192 853 204 1582 . . Cannons 591 | . . . 502 . 89 Explosions 254 | . 213 41 . . . Melee 442 | . . . 224 218 . Ramming . | . . . . . . Kinetic 567 | 156 11 61 250 . 89 Thermal 1996 | . 121 41 1834 . . Explosive 92 | . 92 . . . . Electromagnetic 1021 | 36 842 143 . . . Impact . | . . . . . . Slashing 442 | . . . 224 218 . Piercing . | . . . . . . Highest Corruption . | . . . . . . Average Corruption . | . . . . . . Corruption Purged . | . . . . . . Corruption Blocked . | . . . . . . Overload Shots . | . . . . . . Overflow Damage 50 | . 16 . 34 . . Projectiles . | . . . . . . Explosions 16 | . 16 . . . . Melee 34 | . . . 34 . . Knockbacks 2 | . . . 2 . . Impact . | . . . . . . Kinetic 2 | . . . 2 . . Secondary . | . . . . . . Self-Inflicted Damage 169 | . 169 . . . . Shots 5 | . 5 . . . . Rammed . | . . . . . . Targets Rammed . | . . . . . . Kicked . | . . . . . . Crushed . | . . . . . . Highest Temperature 171 | 18 171 33 117 . 91 Average Temperature 38 | 12 48 19 31 . 36 Received Heat Transfer 681 | . 159 9 162 . 351 Siege Activations . | . . . . . . Martial Activations . | . . . . . . Shielding Activations . | . . . . . . Robots Disrupted . | . . . . . . Combat Hostiles . | . . . . . . Robots Corrupted 1 | . 1 . . . . Combat Hostiles 1 | . 1 . . . . Parts Fried 1 | . . 1 . . . Impact Corruptions . | . . . . . . Robots Melted 2 | . . . 2 . . Combat Hostiles 2 | . . . 2 . . Parts Melted 8 | . . . 8 . . Heat Transferred 2420 | . 200 . 2220 . . Parts Sabotaged . | . . . . . . Parts Stolen . | . . . . . . Parts Stripped . | . . . . . . Power Chain Reactions 5 | . 4 1 . . . Alert | -11 -10 -10 -10 -7 -7 ------- Run | Yrd Mat Min Sub Rec Scr Maximum Alert Level . | . . . . . . Low Security (%) 100 | 100 100 100 . 100 . Level 1 . | . . . . . . Level 2 . | . . . . . . Level 3 . | . . . . . . Level 4 . | . . . . . . Level 5 . | . . . . . . High Security . | . . . . . . Max Security . | . . . . . . Peak Influence 122 | 15 122 23 . 50 . Initial 40 | . . 18 . 40 . Average 24 | 1 58 1 . 8 . Influence Increases 910 | 20 490 53 145 202 . Destroy 0b10 Robot/C 380 | . 240 40 40 60 . Destroy 0b10 Robot/NC 65 | 20 25 10 . 10 . Destroy Leader 66 | . 66 . . . . Allied During Kill 24 | . . 3 . 21 . Successful Hack 30 | . 9 . . 21 . Select Force Hacks 90 | . . . . 90 . Disable Machine 90 | . 90 . . . . Destroy Structure 30 | . 30 . . . . Lose Combat Pursuer 135 | . 30 . 105 . . Influence Decreases 910 | 20 442 93 69 286 . Entered New Map 79 | . . 30 5 44 . Time Decay 761 | 20 422 63 34 222 . Lost Part 50 | . 20 . 30 . . Lost Ally 20 | . . . . 20 . Squads Dispatched 4 | . 4 . . . . Investigation . | . . . . . . Extermination . | . . . . . . Reinforcement 4 | . 4 . . . . Assault . | . . . . . . Garrison . | . . . . . . Intercept . | . . . . . . Searches Triggered . | . . . . . . Construction Impeded . | . . . . . . Haulers Reinforced . | . . . . . . Active Scanning Responses . | . . . . . . Cargo Convoy Interrupts . | . . . . . . Stealth | -11 -10 -10 -10 -7 -7 --------- Run | Yrd Mat Min Sub Rec Scr Distress Signals 4 | . 4 . . . . Communications Jammed . | . . . . . . Distress Signals . | . . . . . . Times Spotted 65 | . 25 3 21 3 13 Peak Tracking Total 7 | . 4 1 6 2 7 Tactical Retreats 9 | . 2 . 4 . 3 Traps | -11 -10 -10 -10 -7 -7 ------- Run | Yrd Mat Min Sub Rec Scr Traps Triggered 3 | . 3 . . . . Indirectly . | . . . . . . Trap Hack Attempts 103 | . . . 103 . . Triggered . | . . . . . . Disarmed 2 | . . . 2 . . Reprogrammed 10 | . . . 10 . . Reused 1 | . . . 1 . . Traps Extracted . | . . . . . . Installed 2 | . . . 2 . . Triggered . | . . . . . . Most Traps Carried 1 | . . . 1 . 1 Machines | -11 -10 -10 -10 -7 -7 ---------- Run | Yrd Mat Min Sub Rec Scr Machines Disabled 8 | . 6 . 1 . 1 Max in Single Turn 2 | . 2 . 1 . 1 Machines Repaired . | . . . . . . Machines Dismantled . | . . . . . . Machines Sabotaged . | . . . . . . Overloaded Fab Kills . | . . . . . . Hacking | -11 -10 -10 -10 -7 -7 --------- Run | Yrd Mat Min Sub Rec Scr Machines Accessed 27 | . 9 1 2 10 5 Terminals 12 | . 7 . . 5 . Fabricators . | . . . . . . Repair Stations 1 | . 1 . . . . Recycling Units 6 | . 1 . . 5 . Scanalyzers . | . . . . . . Garrison Access . | . . . . . . Total Hacks 95 | . 23 1 5 28 38 Successful 65 | . 12 1 5 9 38 Failed 29 | . 10 . . 19 . Catastrophic 6 | . 1 . . 5 . Database Lockouts 1 | . 1 . . . . Manual 33 | . 14 . . 19 . Terminals 30 | . 17 . . 13 . Fabricators . | . . . . . . Repair Stations 5 | . 5 . . . . Recycling Units 16 | . 1 . . 15 . Scanalyzers . | . . . . . . Garrison Access . | . . . . . . Terminal Hacks 49 | . 5 1 5 . 38 Record 41 | . . . 4 . 37 Robot Analysis 2 | . 2 . . . . Open Door 1 | . . 1 . . . Locate Traps 1 | . 1 . . . . Recall Reinforcements 1 | . 1 . . . . Hauler Manifests 1 | . 1 . . . . Proto ID Catalog 2 | . . . 1 . 1 Fabricator Hacks . | . . . . . . Repair Station Hacks 3 | . 3 . . . . Scan Component 2 | . 2 . . . . Repair 1 | . 1 . . . . Recycling Unit Hacks 2 | . 1 . . 1 . Retrieve Components 2 | . 1 . . 1 . Scanalyzer . | . . . . . . Garrison Access Hacks . | . . . . . . Unauthorized Hacks 11 | . 3 . . 8 . Terminals 8 | . 3 . . 5 . Botnet 2 | . . . . 2 . Operators 1 | . 1 . . . . Skim 5 | . 2 . . 3 . Fabricators . | . . . . . . Repair Stations . | . . . . . . Recycling Units 3 | . . . . 3 . Tunnel 3 | . . . . 3 . Scanalyzers . | . . . . . . Garrison Access . | . . . . . . Data Cores Recovered . | . . . . . . Used . | . . . . . . Hacking Detections 17 | . 7 . . 10 . Full Trace Events 2 | . . . . 2 . Feedback Events . | . . . . . . Feedback Blocked . | . . . . . . Robot Schematics Acquired . | . . . . . . Robots Built . | . . . . . . Authchips . | . . . . . . Time . | . . . . . . Total Robot Build Rating . | . . . . . . Part Schematics Acquired . | . . . . . . Parts Built . | . . . . . . Authchips . | . . . . . . Time . | . . . . . . Total Part Build Rating . | . . . . . . Parts Repaired 1 | . 1 . . . . Time 26 | . 26 . . . . Parts Recycled . | . . . . . . Recycled Matter . | . . . . . . Retrieved Matter . | . . . . . . Retrieved Components 5 | . 2 . . 3 . Parts Scanalyzed . | . . . . . . Part Schematics Acquired . | . . . . . . Parts Damaged . | . . . . . . Bothacking | -11 -10 -10 -10 -7 -7 ------------ Run | Yrd Mat Min Sub Rec Scr Used RIF Installer . | . . . . . . Robots Hacked 12 | . . 1 . 3 8 Non-combat 5 | . . . . 3 2 Combat 7 | . . 1 . . 6 Robot Hacks Applied 13 | . . 1 . 4 8 parse_system 13 | . . 1 . 4 8 Relay Couplers Released . | . . . . . . Fabnet Peak Effective % . | . . . . . . Robots Rewired 11 | . . . . 11 . Allies Hacked . | . . . . . . Hacks Repelled . | . . . . . . Allies | -11 -10 -10 -10 -7 -7 -------- Run | Yrd Mat Min Sub Rec Scr Total Allies 15 | . . 3 1 11 . Largest Group 9 | . . 1 1 9 9 Highest-Rated Group 220 | . . 16 15 218 220 Highest-Rated Ally 40 | . . 16 15 40 40 Total Orders 15 | . . 4 1 . 10 STAY 4 | . . . . . 4 FOLLOW 3 | . . . . . 3 AID 2 | . . . . . 2 PICKUP 1 | . . . . . 1 RETURN 5 | . . 4 1 . . Ally Attacks 71 | . . 15 1 17 38 Total Damage 1089 | . . 93 4 206 786 Kills 10 | . . 1 . 3 6 Allies Corrupted . | . . . . . . Allies Melted 4 | . . . . . 4 Intel | -11 -10 -10 -10 -7 -7 ------- Run | Yrd Mat Min Sub Rec Scr Active Infowar (turns) 8559 | 45 1214 500 5731 1069 . Seismic 8559 | 45 1214 500 5731 1069 . Robot Analysis Total 2 | . 2 . . . . Derelict Logs Recovered 8 | . . 2 2 . 4 Drone Launches 13 | . . 10 3 . . Drone Recoveries 13 | . . 10 3 . . Exploration | -11 -10 -10 -10 -7 -7 ------------- Run | Yrd Mat Min Sub Rec Scr Turns Passed 17086 | 166 1597 1292 6330 1225 6476 Spaces Moved 8365 | 65 636 668 2517 609 3870 Core 324 | 2 . . . . 322 Treads 152 | 63 87 . 2 . . Legs . | . . . . . . Wheels 7065 | . 549 668 2515 609 2724 Hover 76 | . . . . . 76 Flight 748 | . . . . . 748 Fastest Speed 34 | 50 160 175 150 175 34 Average Speed 159 | 156 182 183 164 176 146 Slowest Speed 600 | 160 320 190 320 190 600 Overloaded Moves . | . . . . . . Propulsion Burnouts . | . . . . . . Robots Hopped . | . . . . . . Potential Cave-ins . | . . . . . . Cave-ins Triggered . | . . . . . . Exploration Rate (%) 80 | 5 97 99 91 98 94 Regions Visited 5 Branch Regions 4 Pre-discovered Areas 11 | . . 1 . 3 7 Known Exits Taken 1 | . . . 1 . . Unknown Exits Taken 4 | 1 1 1 . 1 . Scrap Searched 18 | . . 1 10 . 7 Spaces Dug 23 | . 4 . 7 . 12 Terrain Destroyed 51 | . 33 . 7 . 11 Melee 3 | . 2 . 1 . . Projectile 9 | . 2 . 6 . 1 AOE 29 | . 29 . . . . Terrain Rammed . | . . . . . . Walls Destroyed . | . . . . . . Machines Disabled . | . . . . . . Actions | -11 -10 -10 -10 -7 -7 --------- Run | Yrd Mat Min Sub Rec Scr Total 11726 | 102 973 716 4480 750 4705 Wait 2595 | . 190 19 1561 81 744 Move 8360 | 64 635 667 2516 608 3870 Hop . | . . . . . . Pick Up 124 | 8 38 5 38 11 24 Fast Attach 18 | 7 . 1 3 1 6 Attach 17 | . 3 . 7 1 6 Detach 2 | . . . . . 2 Swap 105 | 1 38 4 51 6 5 Drop 114 | . 19 7 38 13 37 Fire 238 | 22 47 12 156 . 1 Melee 48 | . 3 1 5 29 10 Ram . | . . . . . . Kick . | . . . . . . Crush . | . . . . . . Escape Stasis . | . . . . . . Rewire . | . . . . . . Trap 105 | . . . 105 . . Miscellaneous . | . . . . . . Route ------- -11/Scrapyard -10/Materials (discovered 4 exits: [*Mat x3] / *Min) -10/Mines (discovered 4 exits: [*Mat x2] / [*Exi] / *Sub) -10/Subcaves (discovered 3 exits: [*Mat x2] / *Rec) -7/Recycling (discovered 2 exits: [*Fac] / *Scr) -7/Scraptown (discovered 2 exits: [*Fac x2]) History --------- Turn | Location | Event 17 | -11/Scrapyard | Discovered new exit (range 15) 167 | -11/Scrapyard | Entered Materials 328 | -10/Materials | Build established: Mutant 915 | -10/Materials | Discovered new exit (range 16) 1175 | -10/Materials | Discovered new exit (range 16) 1345 | -10/Materials | Central database locked down 1387 | -10/Materials | Repaired Lgt. Treads 1487 | -10/Materials | Discovered new exit (range 16) 1673 | -10/Materials | Discovered new exit (range 11) 1764 | -10/Materials | Entered Mines 1801 | -10/Mines | Learned Materials stockpile data 1955 | -10/Mines | Discovered new exit (range 13) 2202 | -10/Mines | Discovered new exit (range 7) 2229 | -10/Mines | Found the Drone Emporium 2236 | -10/Mines | Found Prototype Device 2236 | -10/Mines | Identified Splice Drone Bay 2302 | -10/Mines | Learned location of Storage (-7) 2469 | -10/Mines | Received a Rocket Launcher from a helpful Derelict 2653 | -10/Mines | Deemed a non-threat by the Exiles lab entrance 2653 | -10/Mines | Discovered new exit (range 5) 2976 | -10/Mines | Discovered new exit (range 10) 3056 | -10/Mines | Entered Subcaves 4003 | -10/Subcaves | Shifting Twisted Machinery released Sub. Machine Gun 4330 | -10/Subcaves | Shifting Twisted Machinery released Mak. Sword 4355 | -10/Subcaves | Discovered new exit (range 8) 4612 | -10/Subcaves | Build established: Scavenger-Mutant 5177 | -10/Subcaves | Shifting Twisted Machinery released Sub. Power Source 6347 | -10/Subcaves | Shifting Twisted Machinery released Piercing Trap 6607 | -10/Subcaves | Shifting Twisted Machinery released Riot Gun 6607 | -10/Subcaves | Learned Materials emergency access door positions 6627 | -10/Subcaves | Discovered new exit (range 8) 7397 | -10/Subcaves | Visited 4L-MR0's lab 7417 | -10/Subcaves | Found Tower Shield 8042 | -10/Subcaves | Build established: Mutant 8244 | -10/Subcaves | Core integrity fell below 50% 8391 | -10/Subcaves | Curiously followed by a Cobbler waking with a query about "LVR3C" 8702 | -10/Subcaves | Ambushed by angry Subdweller bent on revenge 8924 | -10/Subcaves | Visited Clippyterm 8930 | -10/Subcaves | Identified exit to Recycling 9386 | -10/Subcaves | Entered Recycling 9820 | -7/Recycling | Build established: Commander-Mutant 10242 | -7/Recycling | Discovered new exit (range 5) 10490 | -7/Recycling | Scanned before Scraplab entrance 10517 | -7/Recycling | Entered Scraplab 10536 | -7/Recycling | Discovered new exit (range 2) 10611 | -7/Recycling | Entered Scraptown 10611 | -7/Scraptown | Accompanied by 9 allies 11346 | -7/Scraptown | Visited CPS Storage 11382 | -7/Scraptown | Visited Spacefarers 11474 | -7/Scraptown | Visited Cyclists 11695 | -7/Scraptown | Visited Shadow of the Wyrm 11767 | -7/Scraptown | Scanned Subdweller tech in exchange for log data 11771 | -7/Scraptown | Learned location of Quarantine (-3) 11773 | -7/Scraptown | Learned location of Testing (-2) 11777 | -7/Scraptown | Learned location of Armory (-3) 11819 | -7/Scraptown | Discovered new exit (range 3) 12164 | -7/Scraptown | Visited Fellowship of the Rings 12183 | -7/Scraptown | Visited The Evicted 12250 | -7/Scraptown | Visited Assassins FH 12350 | -7/Scraptown | Visited UFD Registry 12350 | -7/Scraptown | Registered with UFD as "Powerrider" 12425 | -7/Scraptown | Entered Cyclist Reading Room 12554 | -7/Scraptown | Visited Curators Association 12620 | -7/Scraptown | Visited LU-1G1's Boring Crew 12706 | -7/Scraptown | Visited DA-N13 Charitable Foundation 12727 | -7/Scraptown | Found DCF Scrap (29 items) 13046 | -7/Scraptown | Visited Chapter 10 13100 | -7/Scraptown | Visited Scrap Suit Storage 13191 | -7/Scraptown | Visited A0-MCA Data Center 13206 | -7/Scraptown | Given a B rating by A0-MCA 13212 | -7/Scraptown | Found A0-MCA's Component Scanner 13279 | -7/Scraptown | Discovered new exit (range 5) 13426 | -7/Scraptown | Visited Infowarlord's Domain 13471 | -7/Scraptown | Visited Science Guys 13558 | -7/Scraptown | Visited Cartography Club 13643 | -7/Scraptown | Found Surveybot 17 Chip 14503 | -7/Scraptown | Found Exp. Terrain Scanner 16072 | -7/Scraptown | Learned location of Cetus (-4) 16072 | -7/Scraptown | Learned location of Archives (-4) 16072 | -7/Scraptown | Learned 16 Research zone layouts 16072 | -7/Scraptown | Learned 4 Access zone layouts 16072 | -7/Scraptown | Learned 12 Lower Caves zone layouts 16072 | -7/Scraptown | Learned 16 Upper Caves zone layouts 16072 | -7/Scraptown | Learned 12 Proximity Caves zone layouts 16072 | -7/Scraptown | Learned 24 Proximity Caves zone layouts 16072 | -7/Scraptown | Learned 4 Armory zone layouts 16072 | -7/Scraptown | Learned location of 2 exits from Research 16072 | -7/Scraptown | Learned location of 2 exits from Proximity Caves 16934 | -7/Scraptown | Met Optimus 16934 | -7/Scraptown | Accepted into 0bPrime 16972 | -7/Scraptown | Civil war broke out across Scraptown 16973 | -7/Scraptown | Core integrity fell below 20% 17005 | -7/Scraptown | Found Prototype Special Weapon 17005 | -7/Scraptown | Identified LU-1G1's Laser Shovel 17012 | -7/Scraptown | Found Surveybot 24 Chip 17031 | -7/Scraptown | Found Siege Cannon Replica 17041 | -7/Scraptown | Lost 5 allies 17073 | -7/Scraptown | Attached Tower Shield, gained temporary slots: Power, Propulsion x2, Utility x2, Weapon x2 17087 | -7/Scraptown | Destroyed by HV-NY7(j) with Overtuned Pulse Rifle Last Messages --------------- 17056_ SM-OVP(l) switches sides: "I hope I'm right about this..." 17062_ LU-1G1's Laser Shovel disintegrates Wall. 17063_ OU-YBK(j) cannibalizes Ovr. Titanium Leg to repair Ovr. Titanium Leg. 17063_ LU-1G1's Laser Shovel disintegrates Wall. 17066_ Imp. Hover Unit destroyed. 17071_ Dropped Tower Shield. 17071_ Dropped Med. Storage Unit. 17072_ Acquired Tower Shield. 17073_ Core temporarily expanded with Power slot. 17073_ Core temporarily expanded with Propulsion slot. 17073_ Core temporarily expanded with Utility slot. 17073_ Core temporarily expanded with Weapon slot. 17075_ Siege Cannon Replica recoils violently, damaging core (-10). 17075_ Violent recoil rips off LU-1G1's Laser Shovel. 17075_ Siege Slug penetrates HV-NY7(j). 17076_ Critical hit (Burn: +50). 17077_ 77-GMB(j): "Down with Optimus!" 17083_ Acquired 38 matter. 17084_ Critical hit (Burn: +50). Map ----- +----------------------------------------------------+ | # ######?#### ##??# ## ########?????????????????? | | # ########### ##### ## ##?????####??????????????? | | " """"""""""" """"" "" "#???"" ???????????????? | | "#?? "????????????????? | | "#?? "????????????????? | | "#?" ""???????????????? | | "##" " ??????????????? | | " ""?????????????????? | | """"""""""""""""""" "##" ""?????????????????? | | """"""""""""""""""" "#?" " ????????????????? | | ################"" "#?? ?????????????????? | | ##????????#"" "##########??????????????? | | X"#????????#"" "## #"""""#??????????????? | | "" ##????????#""= "## !! !!#??????????????? | | "" X"#??????###""! "## ##"#???????????? | | " #########*; =%[ "## X" #???????????? | | " =% %[* #???????????? | | " !!=!% "## #???????????? | | " ######### ;! !* ## ! !! !#???????????? | | "" ""#??????##; "## #"""""#""#???????????? | | "" ##????????#"" "#############???????????? | | X"#????????#"" "#???????????????????????? | | ##????????#"" #???????????????????????? | | ################"" * ####????????#???????????? | | """"""""""""""""""" %= ![#l|########"#???????????? | | """"""""""""""""""" ! =*@j%# #"#???????????? | | ==[%[%*!! [ ;#=!= "#???????????? | | !%*=!![ %! ##% "#???????????? | | !%!%!==! "## ""#???????????? | | =! =[! ## "#???????????? | | =*! % =%!! # """ "#???????????? | | """%""""""" "!"""""" "# " " "#???????????? | | ###/##########;=;;#### "" """""" "#???????????? | | = #?# =!*%!**#?# ## """"""" "#???????????? | | # # #?"!=*!![!=#?# #############???????????? | | # # ##[%=[!*!/=#?# #???????????????????????? | | # # ###=%[/![%*#?# #???????????????????????? | | ## # ## #?#=%!##][]#?# #???????????????????????? | | #?# !*##*=*#?# ############????????????? | | # "" # #?"""#######?# #????????????? | | # "/" # #" # ????????# ##????????????? | | # """ # #### ????????# #????????????? | | # # #??##????????# #????????????? | | #########????????????# #????????????? | | ?????????????????????# ############????????????? | | ###################### #####???????????????????? | | "##"""##"""##"""##"|"# """"#???????????????????? | | "##" "##"""##"" ##" # "" "#???????????????????? | | "#???????????????????? | | " "#???????????????????? | +----------------------------------------------------+ Best States ------------- Heat Dissipation 35 Energy Generation 16 Energy Capacity 290 Matter Stores 300 Matter Capacity 300 Sight Range 16 Terrain Scan Density 10 Armor Coverage 2000 Evasion (%) 63 Recoil Reduction 2 Item Schematics ----------------- None Robot Schematics ------------------ None Fabricated ------------ Nothing Repaired ---------- Lgt. Treads | 31% | -10/Materials Alien Tech Used ----------------- None Achievements -------------- None Challenges ------------ None Game ------ Seed DispersalFissionBasin Manual? 0 Play Time 03:14:07 Cumulative 415.0 hours Start 2025.06.29 @ 21:27:23 End 2025.07.02 @ 20:28:04 Sessions 5 Manual Loads 0 Difficulty Rogue Special Mode None Game No. 51 Rogue 48 Adventurer 3 Explorer 0 Win Type - Total 15 Types 8/0/3/1/0/0/1/1/1/0 Lore% 72 Gallery% 79 Achievement% 87 Wizard Run 0 Options --------- Layout 0 ASCII 0 Keyboard 0 Movement Numpad Keybinds 0 Fullscreen 1 Font 18/SmallcapsGlow Map View 76x50 Zoom Use 0% Tactical HUD 1 Map Filters NONE Filters NONE Steam 1 RUN: 1c4f2e4e-0acd-43f7-9537-e5d193564acc